bitfinex/quotes_ETHUSD_20260114
["timestamp","ask_amount","ask_price","bid_price","bid_amount"]
[1768408588707,1.69253331,3374.4,3372.5,0.128]
[1768408588908,1.69253331,3374.4,3372.5,1.58803961]
[1768408589111,1.69453331,3375.0,3372.7,1.47488716]
[1768408589405,1.69453331,3375.0,3372.7,1.56521188]
[1768408589611,1.69453331,3375.0,3372.8,11.85958252]
[1768408589810,1.69453331,3375.0,3372.8,14.82447815]
[1768408590108,0.002,3375.0,3373.0,1.57146057]
[1768408590407,0.002,3375.0,3373.1,3.58962552]
[1768408590613,0.002,3375.0,3373.1,2.07738249]
[1768408590910,1.69453331,3375.0,3373.2,0.379]
[1768408591210,1.69253331,3374.9,3373.2,0.379]
[1768408591413,1.69253331,3374.9,3373.3,0.20773825]
[1768408591586,1.69253331,3374.9,3373.4,8.89310487]
[1768408591790,1.69253331,3374.9,3373.4,11.85747316]
[1768408591990,0.002,3375.0,3373.4,8.89310487]
[1768408592193,0.002,3374.1,3373.4,8.89310487]
[1768408592414,0.002,3375.0,3373.5,0.94798431]
[1768408592613,0.002,3374.4,3373.5,0.94798431]
[1768408592817,1e-08,3375.0,3373.5,0.94798431]
[1768408593223,1e-08,3375.0,3373.6,0.379]
[1768408593586,1.69253331,3375.6,3373.8,11.85606732]
[1768408593783,1.69253331,3375.6,3373.9,1.22350673]
[1768408594498,0.002,3375.8,3373.9,1.22350673]
[1768408595417,1.69253331,3375.7,3373.9,1.22350673]
[1768408595618,1.69253331,3375.5,3374.0,6.30668226]
[1768408595783,1.69253331,3375.5,3374.1,0.02963753]
[1768408595982,1.69253331,3375.5,3374.2,0.75598265]
[1768408596185,1.69253331,3375.5,3374.0,5.92768226]
[1768408596386,1.78285803,3375.3,3374.1,0.379]
[1768408596686,1.69253331,3375.0,3374.1,0.379]
[1768408597082,1.69253331,3375.0,3374.2,0.02963665]
[1768408597426,1.69253331,3375.0,3374.1,0.379]
[1768408597633,4.65556122,3375.0,3374.1,0.379]
[1768408597915,1.69253331,3375.0,3374.1,3.34275299]
[1768408598587,1.69253331,3375.7,3374.1,6.64078158]
[1768408598807,1.69253331,3375.6,3374.1,6.64078158]
[1768408599735,1.69253331,3375.5,3374.1,6.64078158]
[1768408600035,1.69253331,3375.5,3374.1,9.60453487]
[1768408600236,1.69253331,3375.5,3374.1,6.64078158]
[1768408600537,1.69253331,3375.5,3374.2,0.96046655]
[1768408601973,2.96211512,3376.0,3374.2,0.96046655]
[1768408601974,1.69253331,3376.9,3374.3,13.61771657]
[1768408602236,1.69253331,3376.9,3374.6,0.09032472]
[1768408602503,1.69253331,3376.9,3375.0,1.57587794]
[1768408602622,1.69253331,3376.9,3375.1,0.16662027]
[1768408603032,2.96097449,3377.3,3375.1,0.16662027]
[1768408603337,2.96097449,3377.3,3375.1,1.47742185]
[1768408603522,1.69253331,3377.7,3375.4,8.75276157]
[1768408603845,10.24473509,3379.1,3375.7,11.84939416]
[1768408603846,5.92031258,3378.2,3375.7,11.84939416]
[1768408604528,6.0106373,3378.2,3375.7,11.84939416]
[1768408604735,0.09032472,3377.5,3375.7,5.92469708]
[1768408604934,0.09032472,3377.5,3375.8,0.63036971]
[1768408605324,1.78285803,3377.8,3375.8,0.63036971]
[1768408606031,5.92118896,3377.7,3375.9,5.9243461]
[1768408606236,0.002,3376.6,3375.9,5.9243461]
[1768408606445,0.002,3376.9,3375.9,5.9243461]
[1768408606622,0.002,3376.9,3376.0,0.95170155]
[1768408606824,0.002,3376.9,3376.1,0.379]
[1768408608761,0.002,3376.9,3376.1,3.34096295]
[1768408609249,0.002,3376.9,3376.1,6.30296052]
[1768408609747,0.002,3376.9,3376.1,0.379]
[1768408610621,1.63148092,3376.6,3374.7,2.96321357]
[1768408610817,1.63148092,3376.6,3374.2,0.96146655]
[1768408610818,1.79462901,3376.5,3375.4,2.96257529]
[1768408611050,0.002,3376.9,3375.6,2.96242342]
[1768408611228,1.63348092,3376.9,3375.5,0.40862524]
[1768408611419,0.09032472,3376.5,3375.5,0.379]
[1768408611619,1.63148092,3376.5,3375.5,0.379]
[1768408611849,1.80366148,3376.5,3375.5,0.379]
[1768408612163,1.63148092,3376.5,3375.5,0.379]
[1768408612361,2.96173439,3376.4,3375.5,3.34149169]
[1768408612583,2.96173439,3376.4,3375.5,0.379]
[1768408612881,5.92346878,3376.4,3375.5,0.379]
[1768408613029,8.60659724,3376.4,3375.5,0.379]
[1768408613218,1.63148092,3376.3,3375.5,0.379]
[1768408614447,7.06544104,3376.4,3375.5,0.379]
[1768408614448,2.96147125,3376.7,3375.5,0.379]
[1768408614629,5.9229425,3376.7,3375.5,3.34151532]
[1768408614951,5.9229425,3376.7,3375.5,6.30403939]
[1768408615154,3.72614606,3376.7,3375.5,6.30403939]
[1768408615453,6.68761731,3376.7,3375.5,6.30403939]
[1768408615655,6.68761731,3376.7,3375.5,3.34151532]
[1768408616542,2.96138355,3376.8,3375.5,6.30403939]
[1768408616841,2.96338224,3376.9,3375.5,6.30403939]
[1768408616842,0.002,3376.9,3375.5,6.30403939]
[1768408617152,2.96330021,3376.9,3375.5,6.30403939]
[1768408617342,5.92460042,3376.9,3375.5,6.30403939]
[1768408617652,5.92460042,3376.9,3374.8,1.73934957]
[1768408617653,1.72180564,3376.8,3375.6,0.379]
[1768408617858,1.72180564,3376.8,3375.7,0.379]
[1768408617859,1.06077063,3376.7,3375.7,0.379]
[1768408618558,7.55459884,3376.6,3375.7,0.379]
[1768408618762,4.59303988,3376.6,3375.7,0.379]
[1768408618959,4.59303988,3376.6,3375.7,3.34132056]
[1768408619258,2.96140481,3376.8,3375.8,0.0296226]
[1768408619457,0.002,3376.9,3375.7,6.3036691]
[1768408619662,2.96331114,3376.9,3375.7,7.5265394]
[1768408619956,5.92462228,3376.9,3375.7,4.56419086]
[1768408620263,2.96331114,3376.9,3375.7,7.5265394]
[1768408620556,0.002,3376.9,3375.8,0.001]
[1768408620733,1.72380564,3376.9,3375.8,0.001]
[1768408620932,0.002,3376.6,3375.8,0.001]
[1768408622057,0.002,3378.3,3375.8,1.74034957]
[1768408622256,0.002,3378.3,3376.3,1.73934957]
[1768408622462,0.002,3378.3,3376.5,1.82967429]
[1768408622771,0.002,3378.3,3376.6,12.22523584]
[1768408623288,0.002,3378.3,3376.6,9.26367688]
[1768408623446,0.002,3378.3,3376.6,12.22523584]
[1768408623647,0.002,3378.3,3376.7,0.09032472]
[1768408623892,0.002,3378.3,3377.2,0.09032472]
[1768408624192,0.002,3378.3,3377.0,1.73934957]
[1768408624193,0.002,3379.0,3377.3,0.379]
[1768408624547,0.002,3379.0,3377.4,8.88257238]
[1768408625147,0.002,3379.0,3377.4,11.84342984]
[1768408625343,0.002,3379.0,3377.5,1.22224298]
[1768408625759,0.002,3379.0,3377.7,0.09032472]
[1768408625957,2.9583173,3380.3,3377.9,1.82967429]
[1768408626156,1.63148092,3380.2,3378.0,0.379]
[1768408626748,2.95849235,3380.1,3378.1,8.88073176]
[1768408626949,2.95849235,3380.1,3378.2,1.22200245]
[1768408627266,7.54833944,3380.2,3378.2,1.22200245]
[1768408627573,1.63148092,3380.1,3378.2,1.22200245]
[1768408627891,0.378,3380.4,3378.2,1.22200245]
[1768408627892,0.002,3380.4,3378.2,1.22200245]
[1768408628191,0.002,3380.4,3378.9,7.07274278]
[1768408628350,0.002,3380.4,3379.0,1.09530675]
[1768408628546,1.63348092,3381.4,3379.1,0.09032472]
[1768408628782,1.63348092,3381.4,3379.4,0.09032472]
[1768408628783,0.002,3381.4,3379.4,0.09032472]
[1768408629092,1.63148092,3381.3,3379.5,0.379]
[1768408629406,1.63148092,3381.3,3379.2,5.9185606]
[1768408629407,1.72180564,3381.3,3379.2,5.9185606]
[1768408629610,1.63148092,3381.1,3379.3,0.379]
[1768408630393,5.9167102,3381.4,3379.3,0.379]
[1768408630594,5.9167102,3381.4,3379.2,11.8371212]
[1768408630768,0.002,3381.4,3379.4,0.379]
[1768408632672,0.002,3381.4,3379.5,8.8770528]
[1768408632880,0.7569841,3381.4,3379.6,0.92560528]
[1768408634157,1.63148092,3381.3,3379.7,0.379]
[1768408634485,0.376,3381.2,3379.7,0.379]
[1768408634684,1.63148092,3381.3,3379.8,2.95875495]
[1768408634685,5.91523468,3381.1,3379.8,2.95875495]
[1768408634877,2.95752591,3381.3,3379.8,8.87626485]
[1768408635074,0.002,3381.1,3379.9,1.01808701]
[1768408635889,1.63348092,3381.1,3379.8,0.379]
[1768408636891,1.63348092,3381.1,3379.5,2.95893353]
[1768408636892,1.63148092,3380.9,3379.5,2.95898432]
[1768408637082,1.63148092,3380.9,3379.6,2.95891277]
[1768408637392,1.63148092,3380.9,3379.4,0.379]
[1768408637700,1.63148092,3380.9,3379.8,2.9587531]
[1768408637989,2.00748092,3380.9,3379.8,2.9587531]
[1768408638378,2.00748092,3380.9,3378.8,2.95957472]
[1768408638577,1.63148092,3380.8,3378.9,0.379]
[1768408638790,1.63148092,3380.8,3378.4,2.95997787]
[1768408638791,7.54741548,3380.7,3379.0,0.379]
[1768408640194,7.54741548,3380.7,3379.1,5.91873574]
[1768408640493,1.65658253,3380.4,3379.0,3.33840738]
[1768408640692,0.376,3380.3,3379.0,6.29786284]
[1768408640891,0.376,3380.3,3379.0,3.33840738]
[1768408641194,1.85984078,3380.2,3379.0,2.95940738]
[1768408642116,2.95784724,3380.9,3379.0,2.95940738]
[1768408642117,0.002,3381.7,3379.6,1.71314814]
[1768408642403,5.91618516,3381.7,3379.8,8.87626485]
[1768408642591,2.95909258,3381.7,3379.9,0.02958667]
[1768408642772,5.91618516,3381.7,3379.8,8.87626485]
[1768408642983,5.91618516,3381.7,3379.9,1.0968413]
[1768408643504,2.95909258,3381.7,3379.9,1.0968413]
[1768408643881,5.91618516,3381.7,3379.9,1.0968413]
[1768408644214,8.87327774,3381.7,3380.1,2.95849235]
[1768408644589,0.002,3382.8,3380.2,1.71314814]
[1768408644792,5.91432918,3382.8,3380.5,1.71314814]
[1768408645110,1.9127655,3382.7,3380.6,0.55327313]
[1768408645407,1.9127655,3382.7,3380.6,0.379]
[1768408645408,1.74690725,3382.5,3380.6,0.379]
[1768408645609,1.65658253,3382.4,3380.6,0.379]
[1768408645906,2.03258253,3382.4,3380.6,0.379]
[1768408646383,2.95656801,3382.3,3380.7,5.91593456]
[1768408646583,5.91313602,3382.3,3380.7,5.91593456]
[1768408646901,0.376,3382.2,3380.7,5.91593456]
[1768408647495,1.65658253,3382.1,3380.7,2.95796728]
[1768408647696,1.74690725,3382.0,3380.7,2.95796728]
[1768408647900,5.91313602,3382.3,3380.7,5.91593456]
[1768408648103,0.376,3382.2,3380.7,5.91593456]
[1768408648303,1.65658253,3382.6,3380.9,5.9155846]
[1768408648304,0.376,3382.1,3380.9,5.9155846]
[1768408648712,0.376,3382.1,3380.9,2.9577923]
[1768408649017,0.376,3382.1,3380.9,5.9155846]
[1768408649193,0.002,3381.1,3380.9,2.9577923]
[1768408649402,0.376,3382.2,3380.9,5.9155846]
[1768408651135,2.95674285,3382.1,3380.9,5.9155846]
[1768408651729,5.9134857,3382.1,3380.9,2.9577923]
[1768408651934,7.57006823,3382.1,3380.8,2.95786519]
[1768408654641,2.95685065,3382.0,3380.5,5.91628456]
[1768408654818,0.376,3381.9,3380.5,5.91628456]
[1768408655067,0.376,3381.8,3380.5,5.91628456]
[1768408655221,0.376,3381.8,3380.7,5.91593456]
[1768408655619,0.002,3382.5,3380.7,5.91593456]
[1768408655838,2.95648488,3382.4,3380.7,8.87390184]
[1768408656248,0.376,3382.3,3380.8,0.02957879]
[1768408656415,0.376,3382.3,3380.9,0.95330091]
[1768408656613,0.376,3382.3,3380.7,5.91593456]
[1768408656614,0.09032472,3382.2,3380.7,5.91593456]
[1768408656858,1.65658253,3382.2,3380.7,5.91593456]
[1768408657236,0.376,3382.1,3380.7,5.91593456]
[1768408657853,0.002,3382.5,3380.8,1.80347286]
[1768408658004,0.002,3383.1,3381.2,1.80347286]
[1768408658204,0.002,3383.1,3381.3,1.71314814]
[1768408658444,2.95813704,3382.8,3380.9,1.81451952]
[1768408658753,7.57085661,3382.8,3380.9,1.81451952]
[1768408658961,1.65658253,3382.7,3380.9,1.81451952]
[1768408659253,1.65658253,3382.6,3380.9,1.81451952]
[1768408659411,0.376,3382.5,3380.9,3.52766766]
[1768408659611,0.378,3382.8,3381.1,8.87285202]
[1768408660146,0.002,3382.8,3381.1,13.5436175]
[1768408660354,0.002,3382.8,3381.1,10.58600016]
[1768408660522,0.002,3382.8,3381.2,1.24005197]
[1768408661648,5.91426202,3382.8,3381.3,5.9148848]
[1768408661833,7.57084455,3382.8,3381.3,5.9148848]
[1768408662040,4.61471354,3382.8,3381.3,5.9148848]
[1768408662243,4.61471354,3382.8,3381.3,8.8723272]
[1768408662600,2.03258253,3382.7,3381.3,5.9148848]
[1768408663114,2.03258253,3382.7,3381.3,8.8723272]
[1768408663340,0.376,3382.6,3381.3,8.8723272]
[1768408663731,0.376,3382.6,3381.1,1.71314814]
[1768408663936,0.002,3382.8,3381.4,0.02957354]
[1768408664153,0.378,3382.8,3381.5,0.379]
[1768408664359,0.376,3382.7,3381.6,0.0295718]
[1768408664567,0.002,3382.8,3381.6,0.0295718]
[1768408664863,0.002,3382.8,3381.5,0.379]
[1768408665758,0.002,3382.8,3381.6,5.91436006]
[1768408665961,0.002,3383.1,3381.8,1.71314814]
[1768408666461,1.65658253,3384.9,3382.3,1.71314814]
[1768408666648,1.65658253,3384.9,3382.6,1.71314814]
[1768408666847,1.65658253,3384.7,3382.6,1.71314814]
[1768408667169,1.65658253,3383.9,3381.6,10.58468823]
[1768408667338,1.65658253,3383.7,3381.8,1.12140242]
[1768408667665,1.65658253,3383.5,3381.8,1.12140242]
[1768408667848,1.65658253,3383.3,3381.9,5.9138354]
[1768408668047,1.65658253,3383.3,3381.9,2.9569177]
[1768408668943,1.65658253,3383.3,3381.9,5.9138354]
[1768408669144,1.65658253,3383.2,3381.9,5.9138354]
[1768408669331,1.65658253,3383.2,3381.7,0.379]
[1768408669530,1.65658253,3383.2,3381.7,3.33603432]
[1768408669845,5.91173774,3383.1,3381.7,0.379]
[1768408670047,1.65658253,3383.0,3381.5,0.02957267]
[1768408670251,1.65658253,3382.8,3381.3,3.33642179]
[1768408670439,1.65658253,3382.8,3381.3,0.379]
[1768408670628,1.65658253,3382.8,3381.3,3.33637152]
[1768408670826,1.74690725,3382.8,3381.3,3.33643377]
[1768408671248,1.74690725,3382.8,3381.3,0.379]
[1768408671430,1.70992527,3382.6,3381.3,0.379]
[1768408672357,1.70992527,3382.4,3381.3,0.379]
[1768408672660,0.376,3382.3,3381.3,0.379]
[1768408672974,0.376,3382.3,3380.8,2.9588261]
[1768408672975,2.08592527,3382.3,3380.8,0.001]
[1768408673130,2.08592527,3382.3,3381.1,2.95761673]
[1768408673329,1.70992527,3382.1,3381.0,2.95767186]
[1768408673729,1.70992527,3382.1,3380.8,0.001]
[1768408674368,5.91366054,3382.0,3380.8,0.001]
[1768408674564,2.95683027,3382.0,3380.8,0.001]
[1768408675078,5.91366054,3382.0,3380.8,0.001]
[1768408675371,3.33283027,3382.0,3380.8,0.001]
[1768408675672,2.95678099,3382.1,3380.9,0.02957792]
[1768408675839,0.376,3382.0,3380.9,0.02957792]
[1768408676032,1.70992527,3382.5,3380.9,0.02957792]
[1768408676238,5.91208726,3382.9,3381.1,8.87285202]
[1768408676443,2.08592527,3382.8,3381.2,0.379]
[1768408676649,1.70992527,3382.8,3381.3,0.02957442]
[1768408676850,0.376,3382.7,3381.2,0.379]
[1768408677249,0.376,3382.6,3381.1,8.87285202]
[1768408677558,0.376,3382.6,3381.2,1.01802]
[1768408678481,1.70992527,3383.2,3381.3,8.8723272]
[1768408678652,0.376,3383.1,3381.3,8.8723272]
[1768408678848,1.70992527,3383.2,3381.3,10.6056043]
[1768408679049,2.95562055,3383.4,3381.5,1.7332771]
[1768408679372,1.70992527,3383.7,3381.6,2.1418489]
[1768408679562,1.70992527,3383.7,3381.7,1.7332771]
[1768408679871,1.70992527,3383.7,3381.8,1.7332771]
[1768408680257,4.66533452,3383.7,3381.8,1.7332771]
[1768408680457,4.66528078,3383.7,3382.0,8.87049081]
[1768408680659,0.376,3383.8,3382.0,13.56059818]
[1768408680841,1.70992527,3384.2,3382.0,13.56059818]
[1768408680842,0.376,3383.9,3382.0,13.56059818]
[1768408681172,2.08592527,3383.9,3382.1,1.7332771]
[1768408681377,2.08592527,3383.9,3382.2,0.379]
[1768408681684,1.70992527,3384.7,3382.4,1.7332771]
[1768408681849,4.66404774,3385.1,3382.8,1.7332771]
[1768408682176,4.66404774,3385.1,3383.0,1.7332771]
[1768408682347,1.70992527,3384.9,3383.1,0.21122771]
[1768408682543,2.9543843,3384.8,3383.2,5.911563]
[1768408682748,1.70992527,3384.7,3383.2,5.911563]
[1768408682948,1.70992527,3384.5,3383.2,2.9557815]
[1768408683175,1.70992527,3384.5,3382.9,0.379]
[1768408683373,1.70992527,3384.3,3382.9,0.379]
[1768408683577,1.70992527,3384.3,3383.0,2.95592171]
[1768408683785,1.70992527,3384.3,3382.7,2.95619803]
[1768408683985,1.70992527,3384.3,3382.8,2.95610617]
[1768408684290,1.70992527,3384.3,3382.9,2.95598803]
[1768408684595,1.70992527,3384.0,3382.8,2.95611543]
[1768408684750,1.70992527,3383.8,3382.7,2.95616434]
[1768408685109,1.70992527,3383.8,3382.8,2.95612955]
[1768408685467,1.70992527,3383.8,3382.7,2.95619354]
[1768408685648,1.70992527,3383.8,3382.5,0.379]
[1768408685848,0.376,3383.7,3382.7,2.9562138]
[1768408686781,2.95543208,3383.6,3382.6,2.9563058]
[1768408687178,4.6653017,3383.7,3382.6,5.9126116]
[1768408687495,1.70992527,3383.6,3381.9,0.21122771]
[1768408687645,2.08592527,3383.6,3382.6,2.9563058]
[1768408688160,0.09032472,3384.3,3382.6,6.2916116]
[1768408688161,4.66474606,3384.3,3382.6,6.2916116]
[1768408688362,4.66474606,3384.3,3382.7,0.02956218]
[1768408688674,3.04390272,3385.8,3382.7,0.02956218]
[1768408688879,3.04390272,3385.8,3382.7,1.7332771]
[1768408688880,1.55977452,3385.3,3382.7,1.7332771]
[1768408689065,1.70992527,3385.4,3382.9,1.7332771]
[1768408689395,0.002,3383.8,3382.9,1.7332771]
[1768408689586,2.08592527,3384.7,3383.0,0.379]
[1768408690493,2.08592527,3384.7,3382.8,2.20981285]
[1768408690696,1.71192527,3385.2,3383.1,1.7332771]
[1768408690902,1.70992527,3385.1,3383.3,1.7332771]
[1768408691056,1.70992527,3385.1,3383.4,0.379]
[1768408691399,2.95603521,3385.2,3383.4,2.1122771]
[1768408691608,0.002,3385.2,3383.6,1.7332771]
[1768408691807,2.95604967,3385.2,3383.7,0.21122771]
[1768408691964,1.70992527,3385.1,3383.4,0.379]
[1768408692313,1.70992527,3384.9,3383.4,0.379]
[1768408692461,1.70992527,3384.9,3383.0,9.24686875]
[1768408692659,1.70992527,3384.7,3383.0,9.24686875]
[1768408692869,1.70992527,3384.7,3383.0,3.33495625]
[1768408693079,1.70992527,3384.7,3383.1,0.02955868]
[1768408693279,1.70992527,3384.5,3383.1,0.02955868]
[1768408693485,1.70992527,3384.5,3383.0,5.9119125]
[1768408693995,0.375,3384.4,3383.0,5.9119125]
[1768408694362,1.70992527,3384.5,3383.0,5.9119125]
[1768408694558,0.375,3384.4,3383.1,0.88679872]
[1768408694775,2.95482079,3384.3,3383.2,5.911563]
[1768408695188,3.32974612,3384.4,3383.2,5.911563]
[1768408695358,1.70992527,3385.0,3383.3,0.02955694]
[1768408695561,1.70992527,3385.0,3383.2,10.6006216]
[1768408695759,1.70992527,3385.0,3383.3,1.18664203]
[1768408695991,1.70992527,3385.0,3383.4,0.02955606]
[1768408696182,1.70992527,3384.9,3383.3,1.18664203]
[1768408696385,2.08492527,3384.9,3383.3,1.18664203]
[1768408696589,2.08492527,3384.9,3383.2,2.9557815]
[1768408696789,1.70992527,3384.7,3383.2,2.9557815]
[1768408696967,1.70992527,3384.7,3383.2,5.911563]
[1768408697172,0.376,3384.6,3383.2,5.911563]
[1768408697373,2.08592527,3384.6,3383.2,5.911563]
[1768408697799,2.08592527,3384.6,3383.2,6.5406193]
[1768408698772,2.95464618,3384.5,3383.2,6.5406193]
[1768408699001,4.66404774,3385.1,3383.3,1.7332771]
[1768408699195,1.70992527,3385.0,3383.2,6.5406193]
[1768408699400,1.70992527,3385.0,3383.3,0.02955694]
[1768408699705,1.70992527,3385.0,3383.4,0.99049577]
[1768408699706,2.08592527,3385.0,3383.4,0.99049577]
[1768408700897,1.59887679,3384.8,3383.5,2.95551943]
[1768408701093,1.59887679,3384.8,3383.5,5.91103886]
[1768408701600,0.376,3384.7,3383.5,5.91103886]
[1768408701780,0.376,3384.7,3383.5,2.95551943]
[1768408701979,1.97487679,3384.7,3383.4,3.94606279]
[1768408702294,1.97487679,3384.7,3383.4,2.95556702]
[1768408702474,1.97487679,3384.7,3383.1,0.38]
[1768408702675,1.97487679,3384.7,3383.4,2.95559333]
[1768408702876,7.50799455,3384.6,3383.2,5.911563]
[1768408703189,1.59887679,3384.5,3383.2,5.911563]
[1768408703406,1.59887679,3384.5,3383.2,6.5407193]
[1768408703602,1.59887679,3384.5,3383.3,0.02955694]
[1768408704019,0.002,3384.7,3383.3,1.59221528]
[1768408704334,0.002,3385.0,3383.3,1.56265834]
[1768408704631,0.002,3385.0,3383.4,3.0021524]
[1768408704831,0.002,3385.0,3383.5,8.86655829]
[1768408705037,0.002,3385.0,3383.6,0.379]
[1768408705244,0.002,3385.0,3383.6,1.94165834]
[1768408706526,1.60087679,3385.0,3383.6,0.379]
[1768408706727,1.60087679,3385.0,3383.7,1.06850523]
[1768408707227,1.59887679,3384.8,3383.8,2.9552574]
[1768408707429,0.376,3384.7,3383.8,2.9552574]
[1768408707793,0.376,3384.7,3383.8,5.9105148]
[1768408707999,1.59887679,3384.8,3383.8,3.6910594]
[1768408708321,0.376,3384.6,3383.8,3.6910594]
[1768408709120,0.376,3384.6,3383.3,5.91138828]
[1768408709121,2.95464618,3384.5,3383.3,5.91138828]
[1768408709325,2.95464618,3384.5,3383.3,5.94094522]
[1768408709504,2.95464618,3384.5,3383.3,5.91138828]
[1768408709710,1.59887679,3384.8,3383.3,5.91138828]
[1768408709907,0.376,3384.7,3383.4,0.65415446]
[1768408710208,0.376,3384.6,3383.5,0.02955519]
[1768408710414,0.376,3384.6,3383.4,0.65415446]
[1768408711110,3.33063073,3384.6,3383.5,5.91103886]
[1768408711334,3.33063073,3384.6,3383.5,2.95551943]
[1768408711547,1.59887679,3384.5,3383.5,2.95551943]
[1768408712341,0.376,3384.5,3383.5,5.91103886]
[1768408712540,0.002,3385.0,3383.5,6.29003886]
[1768408712818,2.95622005,3385.0,3383.5,9.24555829]
[1768408713017,2.95621018,3385.0,3383.5,9.24555829]
[1768408713218,4.55508697,3385.0,3383.6,1.3763862]
[1768408713616,0.002,3385.0,3383.6,1.3763862]
[1768408713929,1.97487679,3384.9,3383.6,1.3763862]
[1768408715355,1.97487679,3384.9,3383.7,5.91068948]
[1768408715520,4.92920507,3384.9,3383.7,5.91068948]
[1768408715721,4.92920507,3384.9,3383.8,1.06215951]
[1768408716248,1.59887679,3384.8,3383.8,1.06215951]
[1768408716420,1.59887679,3384.8,3383.7,5.91068948]
[1768408716619,1.59887679,3384.8,3383.7,5.91168948]
[1768408717054,0.002,3384.7,3383.7,5.91168948]
[1768408717229,0.002,3384.7,3383.7,0.001]
[1768408717553,1.60087679,3384.7,3383.7,0.001]
[1768408717730,1.59887679,3384.6,3383.7,0.001]
[1768408718923,1.59887679,3384.6,3383.1,0.001]
[1768408719124,1.59887679,3384.6,3383.3,2.9556463]
[1768408719322,0.002,3384.7,3383.1,0.001]
[1768408719323,1.59887679,3384.4,3383.1,0.001]
[1768408719630,1.59887679,3384.2,3383.1,0.001]
[1768408719818,1.79636447,3384.1,3383.1,0.001]
[1768408720724,4.75144548,3384.1,3383.1,0.001]
[1768408721320,1.59887679,3384.0,3383.1,0.001]
[1768408722235,2.95482126,3384.3,3383.1,0.001]
[1768408722434,0.376,3384.2,3383.1,0.69578776]
[1768408722647,0.376,3384.2,3383.1,0.001]
[1768408722648,1.97487679,3384.2,3383.1,0.001]
[1768408722849,4.5538722,3384.1,3383.1,0.001]
[1768408726363,1.59887679,3384.1,3383.1,0.001]
[1768408726959,0.376,3384.0,3383.1,0.001]
[1768408727333,1.59887679,3383.9,3383.1,0.001]
[1768408727973,0.376,3383.8,3383.1,0.001]
[1768408728138,1.59887679,3383.7,3383.1,0.001]
[1768408728347,1.97487679,3383.7,3383.1,0.001]
[1768408729082,4.93029621,3383.7,3383.1,0.001]
[1768408729239,1.59887679,3383.6,3383.1,0.001]
[1768408729983,1.59887679,3384.0,3383.1,0.001]
[1768408730276,1.48331477,3384.5,3383.4,0.001]
[1768408730481,0.376,3384.4,3383.4,0.001]
[1768408730785,1.48331477,3384.3,3383.4,0.001]
[1768408731132,1.48331477,3384.2,3383.4,0.001]
[1768408733076,1.85931477,3384.2,3383.4,0.001]
[1768408733274,1.48331477,3384.2,3383.4,0.001]
[1768408733642,0.002,3384.7,3383.4,1.37987726]
[1768408733846,0.002,3384.7,3383.5,1.55476499]
[1768408734058,0.002,3385.2,3383.7,1.37887726]
[1768408734253,0.002,3385.2,3383.8,0.379]
[1768408734458,0.002,3385.2,3383.9,1.37887726]
[1768408735382,0.002,3385.2,3384.0,5.91016548]
[1768408735580,0.002,3385.2,3384.1,1.062329]
[1768408736267,0.002,3385.2,3384.0,6.28916548]
[1768408737574,1.48531477,3385.2,3384.0,2.95508274]
[1768408738464,1.48531477,3385.2,3384.0,5.91016548]
[1768408740400,1.48531477,3385.2,3383.4,0.001]
[1768408740401,1.48331477,3385.1,3383.4,0.001]
[1768408740603,1.48331477,3384.9,3383.4,0.001]
[1768408740895,1.48331477,3384.7,3383.9,5.91028792]
[1768408741075,0.376,3384.9,3383.9,5.91028792]
[1768408741272,0.376,3384.9,3384.0,0.59102879]
[1768408741687,1.48531477,3385.2,3384.0,0.59102879]
[1768408742107,1.48531477,3385.2,3384.1,5.90999082]
[1768408742513,1.48331477,3386.0,3384.2,1.40842634]
[1768408743295,1.48331477,3386.0,3384.2,0.02954908]
[1768408743499,1.48331477,3385.8,3384.3,0.94855641]
[1768408743779,0.002,3384.6,3384.3,0.94855641]
[1768408744018,0.002,3384.9,3384.5,1.37887726]
[1768408744189,7.76735778,3386.4,3384.7,1.37887726]
[1768408744388,0.002,3386.3,3384.8,1.55476499]
[1768408744790,0.378,3386.3,3384.8,1.55476499]
[1768408745119,1.48531477,3386.2,3384.8,1.55476499]
[1768408746013,1.48531477,3386.2,3384.9,5.90859404]
[1768408746179,1.48531477,3386.2,3384.9,8.86289106]
[1768408746383,1.48531477,3386.2,3385.0,1.04176561]
[1768408746817,1.48531477,3386.2,3385.1,1.37887726]
[1768408747019,1.48531477,3386.2,3385.2,0.38]
[1768408747520,1.48531477,3386.2,3385.3,0.38]
[1768408748592,1.48531477,3386.2,3385.3,3.33394218]
[1768408748821,1.92955534,3386.2,3385.3,0.38]
[1768408749886,1.48331477,3386.1,3384.8,0.17588773]
[1768408750213,1.48331477,3385.9,3384.3,1.37887726]
[1768408750424,1.48331477,3385.9,3384.6,2.95453241]
[1768408750634,1.48331477,3385.9,3384.3,1.75887726]
[1768408750801,1.48331477,3385.9,3384.8,2.95433204]
[1768408750993,0.42053829,3385.8,3384.9,2.95427506]
[1768408751189,0.376,3386.2,3384.9,5.93811505]
[1768408751389,1.86131477,3386.3,3384.9,6.28857208]
[1768408751925,0.002,3386.3,3385.0,1.37887726]
[1768408752087,0.002,3386.3,3385.2,1.37887726]
[1768408752285,0.002,3386.3,3385.3,7.28677316]
[1768408752522,0.002,3386.3,3385.4,0.72867732]
[1768408752855,0.002,3386.9,3385.6,1.37887726]
[1768408754219,0.002,3386.9,3385.8,1.37887726]
[1768408755021,0.002,3386.9,3385.9,1.37887726]
[1768408755239,1.50994437,3387.9,3385.9,1.37887726]
[1768408755550,1.50994437,3387.9,3386.3,1.37887726]
[1768408755720,4.46163686,3387.9,3386.4,1.75887726]
[1768408755919,0.0266296,3387.9,3386.5,1.37887726]
[1768408756440,0.0266296,3387.9,3386.6,5.90562806]
[1768408757251,2.9517681,3387.8,3386.6,2.95281403]
[1768408757553,0.002,3386.6,3386.5,2.95288426]
[1768408757857,0.002,3386.9,3386.0,1.46730322]
[1768408758153,0.002,3386.9,3386.1,3.33319103]
[1768408758356,0.002,3386.9,3386.2,2.95315906]
[1768408758522,0.002,3386.9,3386.2,5.90632189]
[1768408758718,0.002,3386.9,3386.2,2.95315906]
[1768408758924,0.002,3386.9,3386.2,0.38]